Cogmind - Beta 14 @@@ ROGUE MODE // 2024.11.24 @ 13:52:13 Player: Swonlong Result: Destroyed by S-43 Plague with Heavy Machine Gun Performance ------------- Evolutions (9) 4500 Regions Visited (12) 2400 Robots Destroyed (92) 460 Value Destroyed (3684) 3684 Prototype IDs (6) 120 Alien Tech Used (0) 0 Bonus (92) 92 TOTAL SCORE: 11256 Bonus ------- High Alert Combat Kills 92 Cogmind --------- Core Integrity 0/1600 Matter 300/300 Energy 99/100 System Corruption 3% Temperature Cool (0) Movement Core (50) Location -1/Access Parts ------- > --- POWER (3) -------- (None) > --- PROPULSION (6) --- (None) > --- UTILITY (13) ----- (None) > --- WEAPON (3) ------- (None) > --- INVENTORY (5) ---- Light Quantum Reactor Biometal Leg ECM Suite Matter Neutralizer Heavy Gauss Cannon Peak State ------------ > --- POWER ------------ Improved Deuterium Engine Fission Core Fission Core > --- PROPULSION ------- Flexi-carbon Leg Flexi-carbon Leg Flexi-carbon Leg Flexi-carbon Leg Flexi-carbon Leg > --- UTILITY ---------- Advanced Cryofiber Web Improved Heat Sink Large Storage Unit Improved Sensor Array Improved Signal Interpreter Improved Medium Armor Plating Advanced Shield Generator Improved Force Field Hacking Suite System Shield > --- WEAPON ----------- Thermic Laser Heavy Ion Cannon Advanced Plasma Cannon > --- INVENTORY -------- Flexi-carbon Leg Flexi-carbon Leg Cryofiber Web Improved Heat Sink Energy Well Sensor Array Hardened Medium Armor Plating Plasma Cannon Plasma Cannon Heavy Ion Cannon Gauss Rifle Heavy Rocket Launcher Power Maul [Rating: 98] Favorites ----------- Power Fission Core Engine Improved Deuterium Engine Power Core Fission Core Reactor Reinforced Antimatter Reactor Propulsion Flexi-carbon Leg Treads Light Treads Leg Flexi-carbon Leg Flight Unit Q-thruster Utility Large Storage Unit Device Improved Heat Sink Storage Large Storage Unit Processor Improved Signal Interpreter Hackware System Shield Protection Improved Medium Armor Plating Weapon Ion Cannon Energy Gun Thermic Laser Energy Cannon Ion Cannon Ballistic Gun Autogun Ballistic Cannon Flak Cannon Launcher Grenade Launcher Impact Weapon Power Maul Build | -11 -10 -9 -9 -8 -8 -7 -6 -5 -4 -3 -2 -1 ------- Run | Yrd Mat Mat Min Mat Sto Fac Fac Fac Fac Res Res Acc Slots Evolved 18 | . . 2 . 2 . 2 2 2 2 2 2 2 Power 2 | . . . . . . . 1 . . 1 . . Propulsion 4 | . . 2 . . . . . . 1 . 1 . Utility 11 | . . . . 2 . 2 . 2 1 1 1 2 Weapon 1 | . . . . . . . 1 . . . . . Parts Attached 139 | 6 7 15 2 13 10 5 26 6 7 26 12 4 Power 13 | 1 . 2 . 3 1 . 3 . . 2 1 . Engine 7 | 1 . 2 . 2 . . 2 . . . . . Core 4 | . . . . 1 1 . 1 . . 1 . . Reactor 2 | . . . . . . . . . . 1 1 . Propulsion 21 | 2 . 4 . 4 1 . 4 . 1 1 3 1 Treads 3 | 2 . . . . . . . . . . 1 . Leg 15 | . . 4 . 4 1 . 4 . 1 1 . . Wheel . | . . . . . . . . . . . . . Hover . | . . . . . . . . . . . . . Flight 3 | . . . . . . . . . . . 2 1 Utility 57 | 1 4 3 . 4 4 4 14 3 2 16 2 . Device 34 | . 1 2 . 1 2 1 10 3 1 11 2 . Storage 5 | 1 3 . . 1 . . . . . . . . Processor 2 | . . . . . 1 1 . . . . . . Hackware 2 | . . . . . . 1 . . 1 . . . Protection 14 | . . 1 . 2 1 1 4 . . 5 . . Artifact . | . . . . . . . . . . . . . Weapon 48 | 2 3 6 2 2 4 1 5 3 4 7 6 3 Energy Gun 15 | 2 1 2 . . . . 1 1 2 3 2 1 Energy Cannon 12 | . 1 . . 2 2 1 3 1 . 1 1 . Ballistic Gun 3 | . . 1 . . . . . . . . 2 . Ballistic Cannon 5 | . 1 3 1 . . . . . . . . . Launcher 7 | . . . 1 . 2 . . . . 2 . 2 Special Weapon . | . . . . . . . . . . . . . Impact Weapon 6 | . . . . . . . 1 1 2 1 1 . Slashing Weapon . | . . . . . . . . . . . . . Piercing Weapon . | . . . . . . . . . . . . . Special Melee Weapon . | . . . . . . . . . . . . . Unidentified Prototypes 1 | . . . . . . . . . . . 1 . Parts Lost 35 | . . 4 . 2 2 1 . . . 15 8 3 Power 4 | . . 2 . . . . . . . 1 1 . Propulsion 10 | . . 1 . 2 1 . . . . 4 1 1 Utility 12 | . . 1 . . 1 1 . . . 7 2 . Weapon 9 | . . . . . . . . . . 3 4 2 Highest Loss Streak 11 | . . 1 . 2 1 1 . . . 11 8 2 To Critical Strikes . | . . . . . . . . . . . . . Average Slot Usage (%) 87 | . 98 80 100 91 97 99 100 100 100 91 14 2 Engine 5 | . 14 6 11 7 4 . 6 5 5 1 . . Core 3 | . . . . 1 4 7 6 5 5 8 . . Treads 3 | . 28 13 . . . . . . . . 2 . Leg 22 | . . 16 44 35 36 30 26 23 26 21 . . Device 11 | . 13 9 . 1 8 15 13 23 21 20 2 . Storage 7 | . 14 11 11 9 9 7 6 5 5 3 . . Processor 3 | . . . . . 6 8 6 5 5 3 . . Hackware 3 | . . . . . . 5 6 5 10 8 . . Protection 6 | . . 1 11 18 9 6 5 5 5 4 . . Energy Gun 3 | . 22 5 . . . . 2 5 4 3 2 . Energy Cannon 8 | . 4 4 . 3 17 15 16 11 10 7 2 . Ballistic Cannon 3 | . 1 7 14 14 . . . . . . . . Peak Build Rating 98 | 6 8 18 18 33 34 44 63 76 88 98 40 21 Average Rating 39 | 4 7 9 16 24 32 41 55 72 85 87 19 6 On Entrance 29 | . 6 8 18 18 33 33 44 63 75 88 2 . Naked Turns 292 | . . . . . . . . . . 66 39 187 Heaviest Build 109 | 11 87 66 66 66 52 63 76 76 76 109 26 6 Greatest Support 100 | 40 40 40 40 68 68 66 80 80 100 100 30 8 Greatest Overweight (x) 5 | . 2 1 1 5 . . 1 . . 1 . . Average Overweight (x) . | . . 1 1 . . . . . . . . . Largest Inventory Capacity 25 | 8 25 20 20 20 15 15 15 15 15 15 5 5 Average Capacity 14 | 6 10 20 20 15 15 15 15 15 15 14 5 5 Most Carried 17 | 6 11 17 17 17 15 15 15 15 15 15 5 5 Average Carried 12 | 2 7 12 17 14 14 14 14 13 14 13 2 3 Final Capacity 20 | 8 20 20 20 15 15 15 15 15 15 5 5 5 Final Carried 17 | 6 11 17 17 15 15 15 13 15 15 5 1 5 Class Distribution -------------------- 54% | Mutant 14% | Hacker-Tank 9% | Scavenger-Mutant 9% | Tank 6% | Scavenger-Skirmisher 6% | Skirmisher Dominant Class ---------------- Mutant | -10/Materials Mutant | -9/Materials Mutant | -9/Mines Mutant | -8/Materials Mutant | -8/Storage Scavenger-Mutant | -7/Factory Scavenger-Skirmisher | -6/Factory Tank | -5/Factory Hacker-Tank | -4/Factory Hacker-Tank | -3/Research Mutant | -2/Research Mutant | -1/Access Resources | -11 -10 -9 -9 -8 -8 -7 -6 -5 -4 -3 -2 -1 ----------- Run | Yrd Mat Mat Min Mat Sto Fac Fac Fac Fac Res Res Acc Matter Collected 2448 | 226 91 392 45 403 160 45 282 46 91 403 177 87 Remotely . | . . . . . . . . . . . . . Salvage Created 3881 | . 102 399 14 320 816 85 534 100 117 1073 316 5 Parts 155 | . 7 13 5 19 49 5 19 10 2 19 7 . Haulers Intercepted 6 | . . 1 . 1 1 1 . . 1 1 . . Recyclers Shooed 1 | . . . 1 . . . . . . . . . Parts Field Recycled . | . . . . . . . . . . . . . Retrieved Matter . | . . . . . . . . . . . . . Parts Self-Destructed . | . . . . . . . . . . . . . Prevented . | . . . . . . . . . . . . . Kills | -11 -10 -9 -9 -8 -8 -7 -6 -5 -4 -3 -2 -1 ------- Run | Yrd Mat Mat Min Mat Sto Fac Fac Fac Fac Res Res Acc Combat Hostiles Destroyed 75 | . 2 9 4 9 16 1 8 4 . 18 4 . Guns 11 | . 1 4 . . . . 1 1 . 2 2 . Cannons 44 | . 1 4 3 9 13 1 6 3 . 2 2 . AOE 12 | . . . 1 . 3 . . . . 8 . . Classes Destroyed 13 | . 3 3 1 2 . 1 1 . . 2 . . Worker 2 | . . . . . . . 1 . . . . 1 Builder 2 | . . . . 1 1 . . . . . . . Hauler 6 | . . 1 . 1 1 1 . . 1 1 . . Recycler 1 | . . . . . . . . . . 1 . . Operator 2 | . 1 . . . 1 . . . . . . . Watcher 4 | . 1 . . 1 1 . 1 . . . . . Swarmer 19 | . . . 4 4 2 . . 4 . 5 . . Grunt 31 | . 2 4 . 2 4 . 5 . . 10 4 . Brawler 1 | . . . . . . . . . . 1 . . Duelist 1 | . . 1 . . . . . . . . . . Sentry 16 | . . 4 . 2 8 . 2 . . . . . Hunter 3 | . . . . 1 2 . . . . . . . Programmer 4 | . . . . . . 1 1 . . 2 . . Best Kill Streak 6 | . 2 3 4 6 4 1 3 4 1 5 4 1 Combat Bots Only 6 | . 2 2 4 6 4 1 3 4 . 5 4 . Max Kills in Single Turn 2 | . 1 1 1 1 1 1 2 2 1 2 1 1 Gunslinging . | . . . . . . . . . . . . . Exploded 2 | . . . 1 . 1 . . . . 2 . . Melee . | . . . . . . . . . . . . . Uniques/NPCs Destroyed . | . . . . . . . . . . . . . Combat | -11 -10 -9 -9 -8 -8 -7 -6 -5 -4 -3 -2 -1 -------- Run | Yrd Mat Mat Min Mat Sto Fac Fac Fac Fac Res Res Acc Hostile Shots Fired 776 | . 12 56 23 56 101 5 37 7 2 252 87 138 Missed 243 | . 2 11 7 10 33 . 17 . 1 78 28 56 Damage Taken 8983 | . 108 684 129 457 954 76 291 79 17 2924 1447 1817 Core 3471 | . 21 125 17 31 129 16 32 12 . 973 502 1613 Absorbed by Shields 1037 | . . . . . . . 56 32 6 943 . . Redirected to Shielding 94 | . . . . 27 67 . . . . . . . Ignored by Resistances 36 | . . . . 32 . . 4 . . . . . Regen/Repaired (Parts) 31 | . . . . 31 . . . . . . . . Core Remaining (%) 80 | 100 91 . 64 . 70 97 96 98 100 25 65 . Volleys Fired 231 | 1 14 35 7 25 43 4 23 4 2 40 27 6 Largest 3 | 2 2 2 2 2 2 2 3 3 3 3 3 1 Hottest 258 | 90 110 110 88 120 120 125 230 248 248 258 218 65 Shots Fired 501 | 2 27 70 14 50 83 8 69 12 6 104 50 6 Gun 143 | 2 18 30 . . . . 15 4 2 38 32 2 Cannon 341 | . 9 40 13 50 78 8 54 8 4 59 18 . Launcher 17 | . . . 1 . 5 . . . . 7 . 4 Special . | . . . . . . . . . . . . . Kinetic 121 | . 8 52 13 34 . . . . . . 14 . Thermal 363 | 2 19 18 . 16 78 8 69 12 6 97 36 2 Explosive 17 | . . . 1 . 5 . . . . 7 . 4 Electromagnetic . | . . . . . . . . . . . . . Robot Hit Streak 15 | 1 15 8 2 9 9 3 12 5 5 13 11 13 Robot Miss Streak 28 | 1 3 4 28 17 2 1 5 2 1 3 4 3 Penetration Max . | . . . . . . . . . . . . . Secondary Targets . | . . . . . . . . . . . . . Shots Hit Robots 333 | 1 20 50 5 35 52 5 43 7 5 70 38 2 Core Hits 193 | . 7 21 9 30 31 2 16 4 2 44 20 7 Critical Kills 1 | . . . . . . . . . . 1 . . Critical Parts Destroyed . | . . . . . . . . . . . . . Critical Strikes 11 | . . 2 . . . . 4 . . 5 . . Burn 10 | . . 2 . . . . 4 . . 4 . . Meltdown 1 | . . . . . . . . . . 1 . . Melee Attacks 5 | . . . . . . . 1 1 2 1 . . Impact 5 | . . . . . . . 1 1 2 1 . . Slashing . | . . . . . . . . . . . . . Piercing . | . . . . . . . . . . . . . Sneak Attacks . | . . . . . . . . . . . . . Combat Hostiles . | . . . . . . . . . . . . . Follow-up Attacks . | . . . . . . . . . . . . . Damage Inflicted 9701 | 13 295 835 181 555 1599 147 1040 197 126 3454 848 411 Guns 1882 | 13 148 344 . . . . 180 54 36 583 488 36 Cannons 5312 | . 147 491 146 552 1175 147 860 143 90 1201 360 . Explosions 2467 | . . . 35 . 416 . . . . 1656 . 360 Melee . | . . . . . . . . . . . . . Ramming 40 | . . . . 3 8 . . . . 14 . 15 Kinetic 1473 | . 130 616 146 322 . . . . . . 259 . Thermal 5721 | 13 165 219 . 230 1175 147 1040 197 126 1784 589 36 Explosive 2467 | . . . 35 . 416 . . . . 1656 . 360 Electromagnetic . | . . . . . . . . . . . . . Impact . | . . . . . . . . . . . . . Slashing . | . . . . . . . . . . . . . Piercing . | . . . . . . . . . . . . . Highest Corruption 15 | . . . . . . 1 . . . 15 . 3 Average Corruption 4 | . . . . . . 1 . . . 9 . 2 Corruption Purged . | . . . . . . . . . . . . . Corruption Blocked . | . . . . . . . . . . . . . Effects 11 | . . . . . . . . . . 8 . 3 Message Errors 1 | . . . . . . . . . . . . 1 Matter Fused 4 | . . . . . . . . . . 3 . 1 Heat Flow Errors 1 | . . . . . . . . . . 1 . . Data Loss (minor) 1 | . . . . . . . . . . 1 . . Data Loss (major) 1 | . . . . . . . . . . . . 1 Misdirections 3 | . . . . . . . . . . 3 . . Overload Shots . | . . . . . . . . . . . . . Overflow Damage 146 | . . . . 2 28 . 61 2 . 53 . . Projectiles 117 | . . . . 2 3 . 61 2 . 49 . . Explosions 29 | . . . . . 25 . . . . 4 . . Melee . | . . . . . . . . . . . . . Knockbacks 25 | . 3 4 6 12 . . . . . . . . Impact . | . . . . . . . . . . . . . Kinetic 21 | . 3 4 6 8 . . . . . . . . Secondary 4 | . . . . 4 . . . . . . . . Self-Inflicted Damage 34 | . . . . . 26 . . . . 1 . 7 Shots 1 | . . . . . 1 . . . . . . . Rammed 4 | . . . . . . . . . . 2 . 2 Targets Rammed 8 | . . . . 1 1 . . . . 4 . 2 Kicked 4 | . . . . 1 1 . . . . 2 . . Crushed . | . . . . . . . . . . . . . Highest Temperature 723 | 30 234 122 180 530 39 18 723 128 68 433 105 10 Average Temperature 137 | 18 80 40 84 240 10 8 213 61 33 209 27 10 Received Heat Transfer 1626 | . 60 243 . 144 252 27 100 . . 332 288 180 Effects 16 | . . . . 4 . . 9 . . 3 . . Shutdowns 5 | . . . . 1 . . 3 . . 1 . . Energy Bleed 3 | . . . . 1 . . 2 . . . . . Matter Decay 4 | . . . . . . . 2 . . 2 . . Short Circuit 2 | . . . . 1 . . 1 . . . . . Damage (minor) 2 | . . . . 1 . . 1 . . . . . Siege Activations . | . . . . . . . . . . . . . Robots Corrupted . | . . . . . . . . . . . . . Combat Hostiles . | . . . . . . . . . . . . . Parts Fried . | . . . . . . . . . . . . . Impact Corruptions . | . . . . . . . . . . . . . Robots Melted 8 | . . 1 . . . . 1 . . 6 . . Combat Hostiles 8 | . . 1 . . . . 1 . . 6 . . Parts Melted 39 | . . 6 . . 2 . 6 1 1 23 . . Heat Transferred 11144 | 37 457 703 . 370 1887 185 2171 361 237 3555 1144 37 Parts Sabotaged . | . . . . . . . . . . . . . Parts Stolen . | . . . . . . . . . . . . . Parts Stripped . | . . . . . . . . . . . . . Power Chain Reactions . | . . . . . . . . . . . . . Alert | -11 -10 -9 -9 -8 -8 -7 -6 -5 -4 -3 -2 -1 ------- Run | Yrd Mat Mat Min Mat Sto Fac Fac Fac Fac Res Res Acc Peak Influence 797 | . 78 126 125 190 569 339 215 116 70 330 242 797 Initial 258 | . . . 27 48 38 258 67 91 42 36 103 105 Average 152 | . 42 49 50 81 318 266 120 83 54 242 195 336 Maximum Alert Level 3 | . . . . . 2 1 1 . . 1 1 3 Low Security (%) 71 | 100 100 100 100 100 24 22 94 100 100 26 53 37 Level 1 23 | . . . . . 37 77 5 . . 73 46 30 Level 2 4 | . . . . . 37 . . . . . . 24 Level 3 . | . . . . . . . . . . . . 7 Level 4 . | . . . . . . . . . . . . . Level 5 . | . . . . . . . . . . . . . High Security . | . . . . . . . . . . . . . Max Security . | . . . . . . . . . . . . . Squads Dispatched 30 | . 1 1 . 7 4 3 4 1 1 3 1 4 Investigation 4 | . . . . 1 1 1 1 . . . . . Extermination 7 | . . . . . . 2 1 1 . 2 . 1 Reinforcement 16 | . 1 1 . 3 3 . 2 . 1 1 1 3 Assault . | . . . . . . . . . . . . . Garrison 3 | . . . . 3 . . . . . . . . Intercept . | . . . . . . . . . . . . . Searches Triggered . | . . . . . . . . . . . . . Construction Impeded 1 | . . . . . 1 . . . . . . . Haulers Reinforced 1 | . . . . . . . . . . . . 1 Active Scanning Responses . | . . . . . . . . . . . . . Cargo Convoy Interrupts 1 | . . . . . . . 1 . . . . . Stealth | -11 -10 -9 -9 -8 -8 -7 -6 -5 -4 -3 -2 -1 --------- Run | Yrd Mat Mat Min Mat Sto Fac Fac Fac Fac Res Res Acc Distress Signals 9 | . . 2 . 2 2 . . . . . . 3 Communications Jammed . | . . . . . . . . . . . . . Distress Signals . | . . . . . . . . . . . . . Times Spotted 172 | . 5 14 4 14 24 3 12 6 1 31 12 46 Peak Tracking Total 22 | . 2 4 4 6 5 2 3 1 1 9 5 22 Tactical Retreats 13 | . . 1 . 1 1 . 1 . . 1 . 8 Traps | -11 -10 -9 -9 -8 -8 -7 -6 -5 -4 -3 -2 -1 ------- Run | Yrd Mat Mat Min Mat Sto Fac Fac Fac Fac Res Res Acc Traps Triggered 6 | . . 1 . . . . 2 . . 3 . . Indirectly . | . . . . . . . . . . . . . Trap Hack Attempts . | . . . . . . . . . . . . . Triggered . | . . . . . . . . . . . . . Disarmed . | . . . . . . . . . . . . . Reprogrammed . | . . . . . . . . . . . . . Reused . | . . . . . . . . . . . . . Traps Extracted . | . . . . . . . . . . . . . Installed . | . . . . . . . . . . . . . Triggered 1 | . . . . . . . 1 . . . . . Machines | -11 -10 -9 -9 -8 -8 -7 -6 -5 -4 -3 -2 -1 ---------- Run | Yrd Mat Mat Min Mat Sto Fac Fac Fac Fac Res Res Acc Machines Disabled 7 | . . 3 . . 2 . 1 . . . . 1 Max in Single Turn 1 | . . 1 . . 1 . 1 . . . . 1 Energy Cycler 1 | . . . . . . . . . . . . 1 Machines Repaired . | . . . . . . . . . . . . . Machines Dismantled . | . . . . . . . . . . . . . Machines Sabotaged . | . . . . . . . . . . . . . Overloaded Fab Kills . | . . . . . . . . . . . . . Hacking | -11 -10 -9 -9 -8 -8 -7 -6 -5 -4 -3 -2 -1 --------- Run | Yrd Mat Mat Min Mat Sto Fac Fac Fac Fac Res Res Acc Machines Accessed 30 | . 2 4 . 3 4 4 1 4 2 5 1 . Terminals 19 | . 1 2 . 2 4 2 1 1 1 4 1 . Fabricators 1 | . . . . . . . . 1 . . . . Repair Stations 3 | . . . . 1 . 1 . . . 1 . . Recycling Units 3 | . 1 2 . . . . . . . . . . Scanalyzers 2 | . . . . . . 1 . 1 . . . . Garrison Access 2 | . . . . . . . . 1 1 . . . Total Hacks 80 | . 3 12 . 8 14 10 8 8 3 11 3 . Successful 34 | . 1 5 . 4 7 4 6 4 1 1 1 . Failed 45 | . 2 7 . 3 7 6 2 4 2 10 2 . Catastrophic 10 | . . 1 . . 2 1 . 3 1 2 . . Database Lockouts 1 | . . . . 1 . . . . . . . . Manual 29 | . . 3 . 8 7 5 . 3 . 1 2 . Terminals 63 | . 2 9 . 6 14 6 8 4 2 9 3 . Fabricators 2 | . . . . . . . . 2 . . . . Repair Stations 6 | . . . . 2 . 2 . . . 2 . . Recycling Units 4 | . 1 3 . . . . . . . . . . Scanalyzers 3 | . . . . . . 2 . 1 . . . . Garrison Access 2 | . . . . . . . . 1 1 . . . Terminal Hacks 18 | . . 2 . 2 3 1 6 2 1 1 . . Record 8 | . . . . . 1 . 6 1 . . . . Robot Analysis 1 | . . 1 . . . . . . . . . . Prototype ID Bank 2 | . . . . 1 1 . . . . . . . Branch Access Points 1 | . . . . . . . . . . 1 . . Emergency Access Points 1 | . . . . . . 1 . . . . . . Terminal Index 1 | . . . . . . . . . 1 . . . Patrol Status 1 | . . . . . . . . 1 . . . . Recall Reinforcements 1 | . . . . 1 . . . . . . . . Hauler Manifests 1 | . . 1 . . . . . . . . . . Zone Layout 1 | . . . . . 1 . . . . . . . Fabricator Hacks . | . . . . . . . . . . . . . Repair Station Hacks 2 | . . . . 2 . . . . . . . . Scan Component 1 | . . . . 1 . . . . . . . . Repair 1 | . . . . 1 . . . . . . . . Recycling Unit Hacks 3 | . 1 2 . . . . . . . . . . Report Inventory 3 | . 1 2 . . . . . . . . . . Scanalyzer 3 | . . . . . . 2 . 1 . . . . Insert Component 2 | . . . . . . 1 . 1 . . . . Analyze 1 | . . . . . . 1 . . . . . . Garrison Access Hacks . | . . . . . . . . . . . . . Unauthorized Hacks 8 | . . 1 . . 4 1 . 1 . . 1 . Terminals 8 | . . 1 . . 4 1 . 1 . . 1 . Assimilate 1 | . . . . . . . . . . . 1 . Botnet 7 | . . 1 . . 4 1 . 1 . . . . Fabricators . | . . . . . . . . . . . . . Repair Stations . | . . . . . . . . . . . . . Recycling Units . | . . . . . . . . . . . . . Scanalyzers . | . . . . . . . . . . . . . Garrison Access . | . . . . . . . . . . . . . Data Cores Recovered . | . . . . . . . . . . . . . Used . | . . . . . . . . . . . . . Hacking Detections 28 | . 1 3 . 3 4 4 1 4 2 5 1 . Full Trace Events 3 | . . . . 1 1 1 . . . . . . Feedback Events 1 | . . . . . . 1 . . . . . . Corruption 1 | . . . . . . 1 . . . . . . Feedback Blocked . | . . . . . . . . . . . . . Robot Schematics Acquired . | . . . . . . . . . . . . . Robots Built . | . . . . . . . . . . . . . Authchips . | . . . . . . . . . . . . . Time . | . . . . . . . . . . . . . Total Robot Build Rating . | . . . . . . . . . . . . . Part Schematics Acquired 1 | . . . . . . 1 . . . . . . Parts Built . | . . . . . . . . . . . . . Authchips . | . . . . . . . . . . . . . Time . | . . . . . . . . . . . . . Total Part Build Rating . | . . . . . . . . . . . . . Parts Repaired 1 | . . . . 1 . . . . . . . . Time 32 | . . . . 32 . . . . . . . . Parts Recycled . | . . . . . . . . . . . . . Recycled Matter . | . . . . . . . . . . . . . Retrieved Matter . | . . . . . . . . . . . . . Retrieved Components . | . . . . . . . . . . . . . Parts Scanalyzed 1 | . . . . . . 1 . . . . . . Part Schematics Acquired 1 | . . . . . . 1 . . . . . . Parts Damaged . | . . . . . . . . . . . . . Bothacking | -11 -10 -9 -9 -8 -8 -7 -6 -5 -4 -3 -2 -1 ------------ Run | Yrd Mat Mat Min Mat Sto Fac Fac Fac Fac Res Res Acc Used RIF Installer . | . . . . . . . . . . . . . Robots Hacked . | . . . . . . . . . . . . . Non-combat . | . . . . . . . . . . . . . Combat . | . . . . . . . . . . . . . Robot Hacks Applied . | . . . . . . . . . . . . . Relay Couplers Released . | . . . . . . . . . . . . . Fabnet Peak Effective % . | . . . . . . . . . . . . . Robots Rewired . | . . . . . . . . . . . . . Allies Hacked . | . . . . . . . . . . . . . Hacks Repelled . | . . . . . . . . . . . . . Allies | -11 -10 -9 -9 -8 -8 -7 -6 -5 -4 -3 -2 -1 -------- Run | Yrd Mat Mat Min Mat Sto Fac Fac Fac Fac Res Res Acc Total Allies . | . . . . . . . . . . . . . Largest Group . | . . . . . . . . . . . . . Highest-Rated Group . | . . . . . . . . . . . . . Highest-Rated Ally . | . . . . . . . . . . . . . Total Orders . | . . . . . . . . . . . . . Ally Attacks . | . . . . . . . . . . . . . Total Damage . | . . . . . . . . . . . . . Kills . | . . . . . . . . . . . . . Allies Corrupted . | . . . . . . . . . . . . . Allies Melted . | . . . . . . . . . . . . . Intel | -11 -10 -9 -9 -8 -8 -7 -6 -5 -4 -3 -2 -1 ------- Run | Yrd Mat Mat Min Mat Sto Fac Fac Fac Fac Res Res Acc Robot Analysis Total 1 | . . 1 . . . . . . . . . . Derelict Logs Recovered . | . . . . . . . . . . . . . Drone Launches . | . . . . . . . . . . . . . Drone Recoveries . | . . . . . . . . . . . . . Exploration | -11 -10 -9 -9 -8 -8 -7 -6 -5 -4 -3 -2 -1 ------------- Run | Yrd Mat Mat Min Mat Sto Fac Fac Fac Fac Res Res Acc Turns Passed 6223 | 96 425 871 111 835 580 518 796 512 134 856 205 284 Spaces Moved 3590 | 53 187 317 42 384 286 338 404 376 92 446 129 536 Core 582 | 5 . . . . . . . . . 130 89 358 Treads 455 | 48 187 181 . . . . . . . . 39 . Legs 2374 | . . 136 42 384 286 338 404 376 92 316 . . Wheels . | . . . . . . . . . . . . . Hover . | . . . . . . . . . . . . . Flight 179 | . . . . . . . . . . . 1 178 Fastest Speed 20 | 50 160 190 190 130 127 127 120 120 120 50 20 40 Average Speed 130 | 149 175 218 190 166 129 127 145 120 120 126 78 46 Slowest Speed 470 | 160 320 240 190 470 130 127 197 120 120 190 145 50 Overloaded Moves . | . . . . . . . . . . . . . Propulsion Burnouts . | . . . . . . . . . . . . . Robots Hopped 5 | . . . . . . . . . . . . 5 Cave-ins Triggered . | . . . . . . . . . . . . . Exploration Rate (%) 17 | 4 36 33 10 29 47 10 10 12 6 13 4 19 Regions Visited 12 Branch Regions 2 Pre-discovered Areas . | . . . . . . . . . . . . . Known Exits Taken 4 | . . . . . . 1 1 1 1 . . . Unknown Exits Taken 8 | 1 1 1 1 1 1 . . . . 1 1 . Scrap Searched . | . . . . . . . . . . . . . Spaces Dug 6 | . . . . . 1 . 1 1 2 1 . . Terrain Destroyed 148 | . . . 8 1 46 1 3 4 3 58 . 24 Melee 5 | . . . . . . . 1 1 2 1 . . Projectile 23 | . . . . 1 9 1 2 3 1 6 . . AOE 120 | . . . 8 . 37 . . . . 51 . 24 Terrain Rammed . | . . . . . . . . . . . . . Walls Destroyed . | . . . . . . . . . . . . . Machines Disabled . | . . . . . . . . . . . . . Actions | -11 -10 -9 -9 -8 -8 -7 -6 -5 -4 -3 -2 -1 --------- Run | Yrd Mat Mat Min Mat Sto Fac Fac Fac Fac Res Res Acc Total 4651 | 65 259 429 59 530 412 422 558 426 104 645 183 559 Wait 517 | . 34 34 9 83 59 59 79 27 . 116 11 6 Move 3569 | 52 186 316 41 383 285 337 403 375 91 446 128 526 Hop 5 | . . . . . . . . . . . . 5 Pick Up 100 | 6 11 19 . 12 6 10 8 8 2 8 3 7 Fast Attach 32 | 6 1 2 . 6 4 . 6 1 . . 4 2 Attach 41 | . 1 5 . 5 2 4 4 2 2 7 7 2 Detach 1 | . . . . . . . . . . . . 1 Swap 66 | . 5 8 2 2 4 1 16 3 5 19 1 . Drop 76 | . 7 9 . 13 8 7 18 5 . 5 2 2 Fire 231 | 1 14 35 7 25 43 4 23 4 2 40 27 6 Melee 5 | . . . . . . . 1 1 2 1 . . Ram 3 | . . . . . . . . . . 1 . 2 Kick 4 | . . . . 1 1 . . . . 2 . . Crush . | . . . . . . . . . . . . . Escape Stasis . | . . . . . . . . . . . . . Rewire 1 | . . 1 . . . . . . . . . . Trap . | . . . . . . . . . . . . . Miscellaneous . | . . . . . . . . . . . . . Route ------- -11/Scrapyard -10/Materials -9/Materials -9/Mines -8/Materials -8/Storage -7/Factory -6/Factory -5/Factory -4/Factory -3/Research (discovered 3 exits: *Res / Qua x2) -2/Research (discovered 2 exits: [*Acc x2]) -1/Access History --------- Turn | Location | Event 3 | -11/Scrapyard | Discovered new exit (range 16) 97 | -11/Scrapyard | Entered Materials 329 | -10/Materials | Build established: Mutant 453 | -10/Materials | Discovered new exit (range 16) 522 | -10/Materials | Entered another Materials area 522 | -9/Materials | Evolved 2 slots: Propulsion x2 1374 | -9/Materials | Discovered new exit (range 11) 1393 | -9/Materials | Entered Mines 1461 | -9/Mines | Discovered new exit (range 7) 1504 | -9/Mines | Entered Materials 1504 | -8/Materials | Evolved 2 slots: Utility x2 1575 | -8/Materials | Repaired Imp. Ion Engine 1686 | -8/Materials | Garrison activated, responded to threat 2266 | -8/Materials | Discovered new exit (range 5) 2310 | -8/Materials | Central database locked down 2339 | -8/Materials | Entered Storage 2909 | -8/Storage | Discovered new exit (range 9) 2919 | -8/Storage | Entered Factory 2919 | -7/Factory | Evolved 2 slots: Utility x2 3218 | -7/Factory | Build established: Scavenger-Mutant 3425 | -7/Factory | Discovered new exit (range 11) 3436 | -7/Factory | Identified exit to Factory 3437 | -7/Factory | Entered another Factory area 3437 | -6/Factory | Evolved 2 slots: Power x1, Weapon x1 3745 | -6/Factory | Build established: Scavenger-Skirmisher 4193 | -6/Factory | Cargo convoy interrupted 4211 | -6/Factory | Discovered new exit (range 16) 4232 | -6/Factory | Identified exit to Factory 4233 | -6/Factory | Build established: Skirmisher 4233 | -6/Factory | Entered another Factory area 4233 | -5/Factory | Evolved 2 slots: Utility x2 4542 | -5/Factory | Build established: Tank 4695 | -5/Factory | Discovered new exit (range 11) 4744 | -5/Factory | Identified exit to Factory 4745 | -5/Factory | Entered another Factory area 4745 | -4/Factory | Evolved 2 slots: Propulsion x1, Utility x1 4849 | -4/Factory | Discovered new exit (range 12) 4877 | -4/Factory | Identified exit to Research 4879 | -4/Factory | Entered Research 4879 | -3/Research | Evolved 2 slots: Power x1, Utility x1 5071 | -3/Research | Build established: Hacker-Tank 5139 | -3/Research | Identified exit to Quarantine 5233 | -3/Research | Lost 3 parts (3u) 5527 | -3/Research | Spotted B-86 Titan 5669 | -3/Research | Released all parts (11) 5694 | -3/Research | System corruption reached 10% 5699 | -3/Research | Lost 11 parts (1p4n3u3w) 5712 | -3/Research | Core integrity fell below 50% 5730 | -3/Research | Discovered new exit (range 11) 5735 | -3/Research | Entered another Research area 5735 | -2/Research | Evolved 2 slots: Propulsion x1, Utility x1 5933 | -2/Research | Discovered new exit (range 14) 5937 | -2/Research | Discovered new exit (range 15) 5940 | -2/Research | Entered Access 5940 | -1/Access | Evolved 2 slots: Utility x2 5970 | -1/Access | Lost 8 parts (1p1n2u4w) 5972 | -1/Access | Energy Cycler disabled 6081 | -1/Access | Spotted B-99 Colossus 6142 | -1/Access | Core integrity fell below 50% 6191 | -1/Access | Core integrity fell below 20% 6210 | -1/Access | Build established: Mutant 6224 | -1/Access | Destroyed by S-43 Plague with Heavy Machine Gun Last Messages --------------- 06149_ Slug penetrates K-01 Serf. 06149_ K-01 Serf destroyed. 06149_ Penetrated by Slug. 06150_ ZPORF2V:BHXQBOE>L&W,1X Q= M,5MV<8=/ Map ----- +----------------------------------------------------+ | ?????????????????????????????????????????????????? | | ?????????????????????????????????????????????????? | | ?????????????????????????????????????????????????? | | ?????????????????????????????????????????????????? | | ?????????????????????????????????????????????????? | | ?????????????????????????????????????????????????? | | ?????????????????????????????????????????????????? | | ?????????????????????????????????????????????????? | | ?????????????????????????????????????????????????? | | ?????????????????????????????????????????????????? | | ?????????????????????????????????????????????? ?? | | ?????????????????????????????????????????????? ?? | | ?????????????????????????????????????????????? ?? | | ?????????????????????????????????????????????# #? | | ???????????????????????????????????########### #? | | ???????????????????????????????????# # #? | | ???????????????????????????????????# # #? | | ???????????????????????????????????# # #? | | ???????????????????????????????????# # #? | | ???????????????????????????????????# # #? | | ???????????????????????????????????# # #? | | ???????????????????????????????????# # #? | | ???????????????????????????????????# # #? | | ?????????????###+###########################+# ## | | ?????????? u s s u k | | ?????????? % @s | | ??????????????##+########/####+################### | | ???????????????????????? # #?????????? | | ???????????????????????? # #?????????? | | ??????????????????????? # """"" #?????????? | | ??????????????????????? # """""""" #?????????? | | ?????????????????????? # """""""" #?????????? | | ?????????????????????? # """"" #?????????? | | ????????????????????? # ????????????????? | | ????????????????????? # ?????????????????? | | ???????????????????? # !?????????????????? | | ???????????????????? # ??????????????????? | | ??????????????????? # ??????????????????? | | ??????????????????? # ??????????????????? | | ?????????????????????#######?????????????????????? | | ?????????????????????????????????????????????????? | | ?????????????????????????????????????????????????? | | ?????????????????????????????????????????????????? | | ?????????????????????????????????????????????????? | | ?????????????????????????????????????????????????? | | | | | | | | | | | +----------------------------------------------------+ Best States ------------- Heat Dissipation 112 Energy Generation 47 Energy Capacity 1010 Matter Stores 300 Matter Capacity 300 Sight Range 16 Robot Scan Range 15 Terrain Scan Range 14 Terrain Scan Density 10 Base Temperature (-) 200 Armor Coverage 450 Resistance: KI 30 Resistance: TH 10 Utility Shielding 66 Phase Shifting 10 Evasion (%) 62 Targeting Accuracy 8 Recoil Reduction 2 Offensive Hacking 10 Defensive Hacking 10 Item Schematics ----------------- Cryofiber Web | -7/Factory | Scanalyzed Robot Schematics ------------------ None Fabricated ------------ Nothing Alien Tech Used ----------------- None Achievements -------------- Denied? Challenges ------------ None Game ------ Seed CargoEncryptedStreamer Manual? 0 Play Time 02:00:26 Cumulative 16.5 hours Start 2024.11.24 @ 09:47:49 End 2024.11.24 @ 13:52:13 Sessions 1 Manual Loads 0 Difficulty Rogue Special Mode None Game No. 20 Rogue 20 Adventurer 0 Explorer 0 Win Type - Total 0 Types 0/0/0/0/0/0/0/0/0 Lore% 11 Gallery% 16 Achievement% 19 Wizard Run 0 Options --------- Layout 1 ASCII 0 Keyboard 0 Movement Arrows Keybinds 0 Fullscreen 1 Font 32/SmallcapsGlow Map View 50x35 Zoom Use 0% Tactical HUD 1 Map Filters NONE Filters NONE Steam 1 RUN: 1cb15868-5546-410e-ad3b-fb5903a2c2ba